bitfinex/quotes_BTCUSD_20250515
["timestamp","ask_amount","ask_price","bid_price","bid_amount"]
[1747323866982,0.9307702,103020.0,103010.0,0.3000294]
[1747323867549,0.9307702,103020.0,103010.0,0.3020294]
[1747323867550,0.92106363,103020.0,103010.0,0.3020294]
[1747323867745,0.92106363,103020.0,103010.0,0.001]
[1747323867964,0.92106363,103020.0,103000.0,0.7399292]
[1747323868179,0.58838111,103010.0,103000.0,0.31138102]
[1747323868558,0.58838111,103010.0,103000.0,0.50439256]
[1747323868776,0.58838111,103010.0,103000.0,0.20319987]
[1747323868942,0.5786736,103010.0,103000.0,0.20319987]
[1747323869138,0.23786369,103010.0,103000.0,0.19465462]
[1747323869342,0.38451742,103010.0,103000.0,0.23348842]
[1747323869549,0.05341473,103010.0,103000.0,0.32108975]
[1747323869764,0.61750259,103010.0,103000.0,0.32208975]
[1747323869967,0.60779622,103010.0,103000.0,0.31338139]
[1747323870169,0.60779622,103010.0,103000.0,0.32208984]
[1747323870349,0.60779622,103010.0,103000.0,0.3317982]
[1747323870554,0.5980889,103010.0,103000.0,0.09878927]
[1747323870757,0.38451723,103010.0,103000.0,0.22477969]
[1747323870976,0.04370694,103010.0,103000.0,0.52384909]
[1747323871183,0.23672,103010.0,103000.0,0.52384909]
[1747323871385,0.40393148,103010.0,103000.0,0.52384909]
[1747323871597,0.27690917,103010.0,103000.0,0.52384909]
[1747323871804,0.60801158,103010.0,103000.0,0.52388909]
[1747323872021,0.58859685,103010.0,103000.0,0.52388909]
[1747323872233,0.25749407,103010.0,103000.0,0.52388909]
[1747323872432,0.24778694,103010.0,103000.0,0.52388909]
[1747323872715,0.034,103010.0,103000.0,0.52388909]
[1747323874045,0.38451695,103010.0,103000.0,0.52388909]
[1747323874263,0.40393149,103010.0,103000.0,0.52388909]
[1747323874479,0.39422408,103010.0,103000.0,0.52388909]
[1747323874910,0.04370704,103010.0,103000.0,0.52388909]
[1747323875138,0.39665128,103010.0,103000.0,0.32112909]
[1747323875362,0.41363957,103010.0,103000.0,0.53359735]
[1747323875594,0.60779547,103010.0,103000.0,0.52388928]
[1747323875852,0.41363957,103010.0,103000.0,0.52388928]
[1747323876079,0.41363938,103010.0,103000.0,0.53359735]
[1747323876304,0.61750373,103010.0,103000.0,0.53359735]
[1747323876524,0.61750373,103010.0,103000.0,0.52388928]
[1747323876745,0.61750373,103010.0,103000.0,0.32112928]
[1747323877275,0.60779641,103010.0,103000.0,0.52388928]
[1747323877502,0.5883813,103010.0,103000.0,0.50447266]
[1747323877733,0.5883813,103010.0,103000.0,0.52388937]
[1747323878177,0.5883813,103010.0,103000.0,0.53359754]
[1747323878411,0.034,103010.0,103000.0,0.54330561]
[1747323878639,0.27742917,103010.0,103000.0,0.54330561]
[1747323878869,0.25801416,103010.0,103000.0,0.54330561]
[1747323879317,0.26772157,103010.0,103000.0,0.54330561]
[1747323879543,0.28713687,103010.0,103000.0,0.54330561]
[1747323880116,0.28681687,103010.0,103000.0,0.54330561]
[1747323880321,0.48097277,103010.0,103000.0,0.51418111]
[1747323880527,0.81207574,103010.0,103000.0,0.52388947]
[1747323880724,0.82178353,103010.0,103000.0,0.53359764]
[1747323881671,0.59850454,103010.0,103000.0,0.54330571]
[1747323881893,0.60821214,103010.0,103000.0,0.54330571]
[1747323882121,0.26740223,103010.0,103000.0,0.54330571]
[1747323882381,0.25769463,103010.0,103000.0,0.54330571]
[1747323882630,0.034,103010.0,103000.0,0.54330571]
[1747323882855,0.04770609,103020.0,103010.0,0.2232611]
[1747323883087,0.27183904,103020.0,103010.0,0.3205705]
[1747323883778,0.26213247,103020.0,103010.0,0.3205705]
[1747323884047,0.47568275,103020.0,103010.0,0.51362337]
[1747323884265,0.79708019,103020.0,103010.0,0.3000694]
[1747323884489,0.79708019,103020.0,103010.0,0.4942253]
[1747323884701,0.78737372,103020.0,103010.0,0.50393309]
[1747323885360,0.78737372,103020.0,103010.0,0.30977719]
[1747323885577,0.77766697,103020.0,103010.0,0.30977719]
[1747323885791,0.77766697,103020.0,103010.0,0.3000694]
[1747323885981,0.77766697,103020.0,103010.0,0.30977719]
[1747323886679,0.77766697,103020.0,103010.0,0.50393309]
[1747323888230,0.87766697,103020.0,103010.0,0.51364079]
[1747323888449,0.87766697,103020.0,103010.0,0.0973094]
[1747323888711,0.87766697,103020.0,103010.0,0.3000694]
[1747323888973,1.21847688,103020.0,103010.0,0.20276]
[1747323889406,0.87766697,103020.0,103010.0,0.20276]
[1747323890874,0.67294697,103020.0,103010.0,0.20276]
[1747323891076,0.1,103020.0,103010.0,0.4942253]
[1747323891291,0.1351,103020.0,103010.0,0.52514754]
[1747323891499,0.15451266,103020.0,103010.0,0.52514754]
[1747323891657,0.16421923,103020.0,103010.0,0.52514754]
[1747323891864,0.15451266,103020.0,103010.0,0.52514754]
[1747323892281,0.15451257,103020.0,103010.0,0.52514754]
[1747323892549,0.35891257,103020.0,103010.0,0.52514754]
[1747323893037,0.36861904,103020.0,103010.0,0.52514754]
[1747323893600,0.71913627,103020.0,103010.0,0.3011729]
[1747323893831,0.91327333,103020.0,103010.0,0.51544022]
[1747323894010,0.70887333,103020.0,103010.0,0.51548022]
[1747323894227,0.91315333,103020.0,103010.0,0.51548022]
[1747323894431,0.91315333,103020.0,103010.0,0.51548031]
[1747323894748,0.91315333,103020.0,103010.0,0.4960653]
[1747323894948,1.24425686,103020.0,103010.0,4e-05]
[1747323895152,1.23455039,103020.0,103010.0,4e-05]
[1747323895546,0.89374048,103020.0,103010.0,4e-05]
[1747323895946,0.5528501,103020.0,103010.0,0.3109206]
[1747323896203,0.88395363,103020.0,103010.0,0.0973494]
[1747323896418,0.88399363,103020.0,103010.0,4e-05]
[1747323896623,1.22480354,103020.0,103010.0,0.2046]
[1747323896835,0.88399363,103020.0,103010.0,0.2046]
[1747323896975,0.88399363,103020.0,103010.0,4e-05]
[1747323897180,0.88399363,103020.0,103010.0,0.2046]
[1747323898414,1.22480354,103020.0,103010.0,0.2046]
[1747323898645,0.88399363,103020.0,103010.0,0.2046]
[1747323899785,0.54318372,103020.0,103010.0,0.2046]
[1747323900015,0.88399363,103020.0,103010.0,0.2046]
[1747323900224,0.67975363,103020.0,103010.0,4e-05]
[1747323900378,0.88319363,103020.0,103010.0,0.2046]
[1747323901041,1.02056354,103020.0,103010.0,0.2046]
[1747323901209,1.22404354,103020.0,103010.0,0.2046]
[1747323902208,0.1351,103020.0,103010.0,0.52518754]
[1747323902549,0.32289219,103020.0,103010.0,0.52518754]
[1747323902687,0.1,103020.0,103010.0,0.52518754]
[1747323902890,0.109706,103020.0,103010.0,0.54298754]
[1747323903103,0.12911857,103020.0,103010.0,0.56188754]
[1747323903321,0.12911857,103020.0,103010.0,0.54298754]
[1747323903972,0.6543601,103020.0,103010.0,0.0973494]
[1747323904172,0.6734601,103020.0,103010.0,0.5154806]
[1747323904383,0.6682301,103020.0,103010.0,0.52518801]
[1747323904596,0.32742019,103020.0,103010.0,0.53489533]
[1747323904792,0.30775619,103020.0,103010.0,0.54460246]
[1747323904931,0.32716923,103020.0,103010.0,0.54460246]
[1747323905137,0.30775609,103020.0,103010.0,0.54460246]
[1747323905338,0.32716875,103020.0,103010.0,0.54460246]
[1747323905587,0.53097247,103020.0,103010.0,0.54460246]
[1747323905763,0.54067922,103020.0,103010.0,0.54460246]
[1747323905962,0.33683541,103020.0,103010.0,0.54460246]
[1747323906185,0.09477,103020.0,103010.0,0.54460246]
[1747323906428,0.09477,103020.0,103010.0,0.58100246]
[1747323907058,0.09477,103020.0,103010.0,0.99030246]
[1747323908195,0.09477,103020.0,103010.0,0.99130246]
[1747323908395,0.09477,103020.0,103010.0,0.99230246]
[1747323909247,0.09477,103020.0,103010.0,1.02164486]
[1747323910088,0.09477,103020.0,103010.0,1.22488486]
[1747323911569,0.09477,103020.0,103010.0,2.25558486]
[1747323912223,0.00194,103060.0,103020.0,0.31453]
[1747323912454,0.00194,103060.0,103050.0,0.33800088]
[1747323912663,0.00194,103060.0,103050.0,0.54252088]
[1747323913781,0.00194,103060.0,103050.0,0.54300075]
[1747323914004,0.00194,103060.0,103050.0,0.56110075]
[1747323914206,0.35245214,103060.0,103050.0,0.72150927]
[1747323914387,0.59331712,103060.0,103050.0,0.09778927]
[1747323914588,0.78821451,103060.0,103050.0,0.09778927]
[1747323914822,0.78821451,103060.0,103050.0,0.20499987]
[1747323916284,0.78821451,103060.0,103050.0,0.20503987]
[1747323916927,0.78821451,103060.0,103050.0,0.00051987]
[1747323917047,0.78821451,103060.0,103050.0,0.20503987]
[1747323917258,1.12902442,103060.0,103050.0,0.00051987]
[1747323917693,1.13745209,103060.0,103050.0,0.00051987]
[1747323918096,0.79664218,103060.0,103050.0,0.00051987]
[1747323918953,1.13745209,103060.0,103050.0,0.00051987]
[1747323920171,0.79664218,103060.0,103050.0,0.00051987]
[1747323921356,1.13745209,103060.0,103050.0,0.00051987]
[1747323921564,1.50199294,103060.0,103050.0,0.00051987]
[1747323922011,0.25062936,103030.0,103020.0,0.40894506]
[1747323922255,0.24094391,103020.0,103010.0,0.00104]
[1747323922486,0.92256373,103020.0,103010.0,0.00152032]
[1747323922767,0.2409635,103010.0,103000.0,4e-05]
[1747323923031,0.59631426,103010.0,103000.0,0.00052035]
[1747323923255,0.93631426,103010.0,103000.0,0.00052035]
[1747323924200,1.14167426,103010.0,103000.0,0.00052035]
[1747323924437,0.58326991,103010.0,103000.0,0.22382007]
[1747323924649,0.81825489,103010.0,103000.0,0.214112]
[1747323924877,0.79884073,103010.0,103000.0,0.20440364]
[1747323925101,0.79013341,103010.0,103000.0,0.20440364]
[1747323925339,0.79013341,103010.0,103000.0,0.00052035]
[1747323925340,0.89781264,103010.0,103000.0,0.00052035]
[1747323925995,0.69245264,103010.0,103000.0,0.00052035]
[1747323926214,0.89777264,103010.0,103000.0,0.00052035]
[1747323927123,0.99508204,103010.0,103000.0,0.00052035]
[1747323927352,1.80781963,103010.0,103000.0,0.00052035]
[1747323927590,0.02913317,102970.0,102960.0,0.83800742]
[1747323927812,0.02913317,102970.0,102960.0,0.7217494]
[1747323927813,0.87971854,102970.0,102960.0,0.7217494]
[1747323928036,0.89599052,102970.0,102960.0,0.09779028]
[1747323928245,0.91499052,102970.0,102960.0,0.00048088]
[1747323928658,0.91499052,102970.0,102960.0,0.2141558]
[1747323929183,0.91499052,102970.0,102960.0,0.20444348]
[1747323929597,0.91499052,102970.0,102960.0,0.2141558]
[1747323929910,0.90527943,102970.0,102960.0,0.00048088]
[1747323930112,0.89556806,102970.0,102960.0,0.00148088]
[1747323930607,0.90551915,102970.0,102960.0,0.00248088]
[1747323930912,0.89580806,102970.0,102960.0,0.00248088]
[1747323932180,0.89580806,102970.0,102960.0,0.32321685]
[1747323932181,0.01942181,102970.0,102960.0,0.32321685]
[1747323932423,0.00970996,102980.0,102970.0,0.19423132]
[1747323932662,0.42866262,102980.0,102970.0,0.31096356]
[1747323932899,0.43837314,102980.0,102970.0,0.32067493]
[1747323933120,0.23305314,102980.0,102970.0,0.32067493]
[1747323933347,0.43825314,102980.0,102970.0,0.52587493]
[1747323933582,0.44796376,102980.0,102970.0,0.52587493]
[1747323933817,0.44896376,102980.0,102970.0,0.52587493]
[1747323934045,0.7019605,102980.0,102970.0,0.31096375]
[1747323934267,0.91425034,102980.0,102970.0,0.2052]
[1747323934894,0.01942228,102970.0,102960.0,0.41939561]
[1747323935112,0.02913318,102970.0,102960.0,0.53612898]
[1747323935319,0.23307597,102970.0,102960.0,0.53612898]
[1747323935526,0.02913309,102970.0,102960.0,0.53612898]
[1747323935731,0.24278725,102970.0,102960.0,0.52641714]
[1747323935933,0.233077,102970.0,102960.0,0.53612917]
[1747323936128,0.233077,102970.0,102960.0,0.53712917]
[1747323936284,0.22336572,102970.0,102960.0,0.52741714]
[1747323936491,0.22336572,102970.0,102960.0,0.50899279]
[1747323936830,0.21365435,102970.0,102960.0,0.52841752]
[1747323937033,0.21365435,102970.0,102960.0,0.33292974]
[1747323937256,0.21365435,102970.0,102960.0,0.53812974]
[1747323938397,0.21365435,102970.0,102960.0,0.54784187]
[1747323939490,0.01942265,102970.0,102960.0,0.54784131]
[1747323939706,0.02913345,102970.0,102960.0,0.54784074]
[1747323939931,0.23307624,102970.0,102960.0,0.52841696]
[1747323940144,0.03884492,102970.0,102960.0,0.52841696]
[1747323940356,0.23307624,102970.0,102960.0,0.54784074]
[1747323940573,0.2427878,102970.0,102960.0,0.52841696]
[1747323940797,0.22336572,102970.0,102960.0,0.51870483]
[1747323941016,0.70076246,102970.0,102960.0,0.51870492]
[1747323941227,0.70076246,102970.0,102960.0,0.51870502]
[1747323941445,0.68133962,102970.0,102960.0,0.51870519]
[1747323942097,0.66213962,102970.0,102960.0,0.51870519]
[1747323942306,0.66213962,102970.0,102960.0,0.51870529]
[1747323942483,0.66213962,102970.0,102960.0,0.52841751]
[1747323942702,0.66213962,102970.0,102960.0,0.50899297]
[1747323942917,0.68093962,102970.0,102960.0,0.5284177]
[1747323943153,0.68093962,102970.0,102960.0,0.53812992]
[1747323944016,0.22274288,102970.0,102960.0,0.53812992]
[1747323944245,0.68093962,102970.0,102960.0,0.53812992]
[1747323944705,0.6906509,102970.0,102960.0,0.54784205]
[1747323944925,0.48733049,102970.0,102960.0,0.54784139]
[1747323945358,0.02913375,102970.0,102960.0,0.54784139]
[1747323945574,0.03884417,102970.0,102960.0,0.53812955]
[1747323945857,0.69095052,102970.0,102960.0,0.41168348]
[1747323946081,0.71015052,102970.0,102960.0,0.41168348]
[1747323946304,0.71015052,102970.0,102960.0,0.41172348]
[1747323946726,0.70043943,102970.0,102960.0,0.20776088]
[1747323946939,0.70043943,102970.0,102960.0,0.01223338]
[1747323947149,0.70043943,102970.0,102960.0,0.00252088]
[1747323947361,0.70043943,102970.0,102960.0,0.20648357]
[1747323947569,0.00971081,102970.0,102960.0,0.23561995]
[1747323947782,0.02913327,102970.0,102960.0,0.23561995]
[1747323947992,0.3687585,102970.0,102960.0,0.23561995]
[1747323948202,0.37846997,102970.0,102960.0,0.23561995]
[1747323948450,0.92983772,102990.0,102980.0,0.21363285]
[1747323948673,0.35752523,102990.0,102980.0,0.21363304]
[1747323948884,0.04630788,103000.0,102990.0,0.22332169]
[1747323949089,0.24217861,103010.0,103000.0,0.20388329]
[1747323949316,0.76890384,103010.0,103000.0,0.20388329]
[1747323949524,0.75911605,103010.0,103000.0,0.20388339]
[1747323949745,0.75911605,103010.0,103000.0,0.19417475]
[1747323949958,0.75911605,103010.0,103000.0,0.00970873]
[1747323950373,0.75440873,103010.0,103000.0,0.01018961]
[1747323950593,0.22042713,103010.0,103000.0,0.33079883]
[1747323950815,0.23013454,103010.0,103000.0,0.33079883]
[1747323951237,0.01570704,103010.0,103000.0,0.33079883]
[1747323951450,0.22927767,103010.0,103000.0,0.33079902]
[1747323951660,0.23398546,103010.0,103000.0,0.34050719]
[1747323951870,0.23398537,103010.0,103000.0,0.34050653]
[1747323952076,0.02441426,103010.0,103000.0,0.34050653]
[1747323952294,0.03412158,103010.0,103000.0,0.34050653]
[1747323952504,0.04482909,103010.0,103000.0,0.34050653]
[1747323952701,0.04482909,103010.0,103000.0,0.34054653]
[1747323952914,0.04282909,103010.0,103000.0,0.34054653]
[1747323953117,0.05453669,103010.0,103000.0,0.34054653]
[1747323953332,0.05453669,103010.0,103000.0,0.54502653]
[1747323953792,0.04482909,103010.0,103000.0,0.54502653]
[1747323953999,0.01570704,103010.0,103000.0,0.54502653]
[1747323954214,0.23898508,103010.0,103000.0,0.53531846]
[1747323954414,0.24869278,103010.0,103000.0,0.53531836]
[1747323954590,0.23942473,103010.0,103000.0,0.54502653]
[1747323954852,0.04526855,103010.0,103000.0,0.54502653]
[1747323955070,0.00643965,103010.0,103000.0,0.54502653]
[1747323955275,0.00643965,103010.0,103000.0,0.58052653]
[1747323957453,0.00643965,103010.0,103000.0,0.60987796]
[1747323958098,0.00343965,103010.0,103000.0,0.60987796]
[1747323958581,0.00143965,103010.0,103000.0,0.60987796]
[1747323958793,0.00143965,103010.0,103000.0,0.61387796]
[1747323959008,0.00243965,103010.0,103000.0,0.61387796]
[1747323959225,0.00243965,103010.0,103000.0,0.58452653]
[1747323959441,0.01114659,103010.0,103000.0,0.38004653]
[1747323959646,0.01114659,103010.0,103000.0,0.96834653]
[1747323959647,0.00143965,103010.0,103000.0,0.96834653]
[1747323959866,0.01114659,103010.0,103000.0,0.97234653]
[1747323960081,0.00143965,103010.0,103000.0,0.97234653]
[1747323960718,0.19559555,103010.0,103000.0,0.94322203]
[1747323960936,0.02328126,103010.0,103000.0,0.54327827]
[1747323961174,0.02328126,103010.0,103000.0,0.31027028]
[1747323961175,0.69455852,103010.0,103000.0,0.31027028]
[1747323961391,0.71003144,103010.0,103000.0,0.21296088]
[1747323961846,0.71003144,103010.0,103000.0,0.20896088]
[1747323962058,0.71003144,103010.0,103000.0,0.20496088]
[1747323962265,0.71003144,103010.0,103000.0,0.00352088]
[1747323962518,0.80734084,103010.0,103000.0,0.00352088]
[1747323962733,1.69775123,103010.0,103000.0,0.00152088]
[1747323962951,1.23973035,103010.0,103000.0,0.00152088]
[1747323963168,1.14242095,103010.0,103000.0,0.00152088]
[1747323963379,0.60645395,103010.0,103000.0,0.00152088]
[1747323963597,1.04993398,103010.0,103000.0,0.19569563]
[1747323963804,0.7959131,103010.0,103000.0,0.20540417]
[1747323964010,1.24522657,103010.0,103000.0,0.00152088]
[1747323964238,1.24522657,103010.0,103000.0,0.00052088]
[1747323964680,1.24722657,103010.0,103000.0,0.00052088]
[1747323965160,1.24622657,103010.0,103000.0,0.00052088]
[1747323965594,0.51007039,103010.0,103000.0,0.19469563]
[1747323965807,0.00534219,103010.0,103000.0,0.5255701]
[1747323966229,0.00534219,103010.0,103000.0,0.5447701]
[1747323966449,0.00534219,103010.0,103000.0,1.04961622]
[1747323966659,0.03446415,103010.0,103000.0,0.92516203]
[1747323966879,0.03246377,103010.0,103000.0,0.9348701]
[1747323967092,0.00334219,103010.0,103000.0,0.9358701]
[1747323967271,0.01104913,103010.0,103000.0,0.9358701]
[1747323967525,0.00134219,103010.0,103000.0,0.9378701]
[1747323967746,0.01104913,103010.0,103000.0,0.9378701]
[1747323968175,0.01104913,103010.0,103000.0,0.9750701]
[1747323968176,0.00134219,103010.0,103000.0,0.9750701]
[1747323968387,0.00134219,103010.0,103000.0,0.9740701]
[1747323968855,0.00134219,103010.0,103000.0,0.9770701]
[1747323970115,0.00134219,103010.0,103000.0,0.9590701]
[1747323970436,0.00134219,103010.0,103000.0,0.9398701]
[1747323971828,0.69486146,103010.0,103000.0,0.51213028]
[1747323972057,0.71053436,103010.0,103000.0,0.00552088]
[1747323972986,0.25251348,103010.0,103000.0,0.21911281]
[1747323973201,0.25251348,103010.0,103000.0,0.20940436]
[1747323973202,0.23441348,103010.0,103000.0,0.20940436]
[1747323973445,0.23441348,103010.0,103000.0,0.22882136]
[1747323973620,0.23441348,103010.0,103000.0,0.219113]
[1747323973863,0.00134219,103010.0,103000.0,0.32613094]
[1747323974091,0.21580913,103010.0,103000.0,0.34554737]
[1747323974302,0.03046349,103010.0,103000.0,0.34554737]
[1747323974513,0.03046339,103010.0,103000.0,0.34554727]
[1747323974711,0.0401708,103010.0,103000.0,0.34554727]
[1747323975115,0.0498784,103010.0,103000.0,0.34554727]
[1747323975330,0.0401708,103010.0,103000.0,0.34554727]
[1747323975506,0.0498784,103010.0,103000.0,0.34554727]
[1747323975745,0.03046339,103010.0,103000.0,0.34554727]
[1747323975955,0.00134219,103010.0,103000.0,0.36404727]
[1747323976160,0.00134219,103010.0,103000.0,0.34554727]
[1747323976161,0.01104932,103010.0,103000.0,0.34554727]
[1747323976369,0.00134219,103010.0,103000.0,0.54998727]
[1747323976573,0.01104923,103010.0,103000.0,0.54998727]
[1747323976758,0.00134219,103010.0,103000.0,0.54998727]
[1747323979843,0.00134219,103010.0,103000.0,0.56908727]
[1747323980049,0.00134219,103010.0,103000.0,0.99728727]
[1747323980287,0.00134219,103010.0,103000.0,1.33728727]
[1747323981710,0.00134219,103010.0,103000.0,1.54156727]
[1747323981918,0.00134219,103010.0,103000.0,1.13284727]
[1747323982120,0.00134219,103010.0,103000.0,1.33724727]
[1747323984270,0.30122612,103050.0,103040.0,0.22321313]
[1747323984509,0.30122612,103050.0,103040.0,0.94384253]
[1747323984510,0.07828831,103050.0,103040.0,0.94384253]
[1747323984773,0.00034219,103050.0,103040.0,0.94384253]
[1747323985029,0.01974901,103050.0,103040.0,0.94384253]
[1747323985242,0.3231062,103050.0,103040.0,0.92443373]
[1747323985457,0.78789731,103050.0,103040.0,0.51703028]
[1747323985630,1.12789731,103050.0,103040.0,0.62376088]
[1747323986038,1.1366053,103050.0,103040.0,0.62376088]
[1747323986796,0.6006383,103050.0,103040.0,0.83726999]
[1747323987003,0.6036383,103050.0,103040.0,0.82756521]
[1747323987209,0.59393465,103050.0,103040.0,0.62376088]
[1747323987409,1.04895553,103050.0,103040.0,0.62376088]
[1747323987620,0.59093465,103050.0,103040.0,0.62376088]
[1747323987843,0.59393465,103050.0,103040.0,0.62376088]
[1747323988051,1.05195553,103050.0,103040.0,0.62376088]
[1747323988263,1.05195553,103050.0,103040.0,0.30183028]
[1747323988470,1.25803553,103050.0,103040.0,0.09779028]
[1747323988874,1.25803553,103050.0,103040.0,0.00048088]
[1747323991511,1.28257638,103050.0,103040.0,0.00048088]
[1747323991936,0.8245555,103050.0,103040.0,0.00048088]
[1747323992168,1.28257638,103050.0,103040.0,0.00048088]
[1747323992391,0.39015018,103050.0,103040.0,0.19458025]
[1747323992610,0.24832083,103050.0,103040.0,0.52504341]
[1747323993030,0.25802476,103050.0,103040.0,0.52504341]
[1747323993242,0.24832083,103050.0,103040.0,0.52504341]
[1747323993451,0.02175345,103050.0,103040.0,0.52504341]
[1747323993661,0.21925018,103050.0,103040.0,0.52504341]
[1747323993868,0.00334219,103050.0,103040.0,0.52504341]
[1747323994725,0.01304555,103050.0,103040.0,0.52504341]
[1747323994934,0.01304546,103050.0,103040.0,0.52504341]
[1747323995142,0.00334219,103050.0,103040.0,0.52504341]
[1747323995835,0.00334219,103050.0,103040.0,0.63968953]
[1747323996944,0.00034219,103050.0,103040.0,0.63968953]
[1747323997354,0.00034219,103050.0,103040.0,0.56174341]
[1747323997538,0.00034219,103050.0,103040.0,0.56474341]
[1747323998202,0.00034219,103050.0,103040.0,0.56774341]
[1747323999027,0.00034219,103050.0,103040.0,0.56474341]
[1747323999234,0.00034219,103050.0,103040.0,0.56774341]
[1747324001682,0.00034219,103050.0,103040.0,1.42700341]
[1747324002016,0.00034219,103050.0,103040.0,1.63100341]
[1747324002544,0.00034219,103050.0,103040.0,1.72100341]
[1747324003364,0.00034219,103050.0,103040.0,1.50729911]
[1747324003602,0.68155455,103050.0,103040.0,2.13041911]
[1747324003808,0.0197492,103050.0,103040.0,2.14012341]
[1747324004054,0.02945303,103050.0,103040.0,2.14012341]
[1747324004248,0.0197492,103050.0,103040.0,2.14012341]
[1747324004485,0.01004546,103050.0,103040.0,2.14012341]
[1747324004689,0.00034219,103050.0,103040.0,2.14012341]
[1747324005740,0.70855099,103050.0,103040.0,0.29788965]
[1747324005916,0.71825501,103050.0,103040.0,0.50188965]
[1747324006145,0.71825501,103050.0,103040.0,0.5310036]
[1747324006347,0.71825501,103050.0,103040.0,0.5212992]
[1747324006528,0.71825501,103050.0,103040.0,0.53100379]
[1747324007199,0.71825501,103050.0,103040.0,0.54070828]
[1747324008136,0.71825501,103050.0,103040.0,0.55041268]
[1747324008339,0.51446989,103050.0,103040.0,0.55041211]
[1747324008744,0.01874219,103050.0,103040.0,0.55041211]
[1747324008914,0.20958219,103050.0,103040.0,0.55041211]
[1747324009164,0.21928546,103050.0,103040.0,0.55041211]
[1747324009331,0.22898892,103050.0,103040.0,0.55041211]
[1747324009737,0.25649257,103050.0,103040.0,0.55041211]
[1747324009940,0.7048098,103050.0,103040.0,0.55041211]
[1747324010121,0.25649257,103050.0,103040.0,0.55041211]
[1747324010323,0.25649257,103050.0,103040.0,0.34641211]
[1747324010528,0.25649257,103050.0,103040.0,0.55041211]
[1747324010724,0.20958219,103050.0,103040.0,0.55041211]
[1747324010937,0.22898892,103050.0,103040.0,0.55041211]
[1747324011303,0.71421335,103050.0,103040.0,0.55041211]
[1747324012693,0.24648892,103050.0,103040.0,0.55041211]
[1747324013154,0.71421335,103050.0,103040.0,0.55041211]
[1747324013404,0.93529838,103050.0,103040.0,0.52129929]
[1747324013629,0.74121784,103050.0,103040.0,0.54070856]
[1747324013850,0.93529819,103050.0,103040.0,0.55041286]
[1747324014065,0.94500212,103050.0,103040.0,0.55041286]
[1747324014587,0.94534431,103050.0,103040.0,0.30779028]
[1747324014791,0.91623356,103050.0,103040.0,0.00648088]
[1747324015467,1.14491425,103050.0,103040.0,0.00348088]
[1747324015909,1.14591425,103050.0,103040.0,0.00048088]
[1747324016125,1.14791425,103050.0,103040.0,0.00048088]
[1747324016347,1.14791425,103050.0,103040.0,0.19458025]
[1747324016565,1.14791425,103050.0,103040.0,0.00048088]
[1747324017008,0.8087098,103050.0,103040.0,0.00048088]
[1747324021434,1.14791425,103050.0,103040.0,0.00048088]
[1747324022036,0.79900597,103050.0,103040.0,0.00048088]
[1747324022464,1.13821042,103050.0,103040.0,0.21084088]
[1747324023814,0.79900597,103050.0,103040.0,0.00048088]
[1747324024027,1.13821042,103050.0,103040.0,0.21084088]
[1747324024249,1.49275127,103050.0,103040.0,0.00048088]
[1747324024448,1.56160262,103050.0,103040.0,0.00048088]
[1747324024671,1.55330995,103050.0,103040.0,0.00048088]
[1747324025056,1.56330995,103050.0,103040.0,0.00048088]
[1747324025299,1.57330995,103050.0,103040.0,0.00048088]
[1747324026249,1.67061935,103050.0,103040.0,0.00048088]
[1747324026451,1.67061935,103050.0,103000.0,0.20392348]
[1747324026452,0.56248268,103010.0,103000.0,0.20392348]
[1747324026634,0.77272268,103010.0,103000.0,0.53149088]
[1747324026838,0.79022268,103010.0,103000.0,0.53149106]
[1747324027073,0.79022268,103010.0,103000.0,0.55090787]
[1747324027262,0.78051546,103010.0,103000.0,0.3081904]
[1747324027469,0.78051546,103010.0,103000.0,0.52178233]
[1747324027886,0.78051546,103010.0,103000.0,0.51207388]
[1747324028230,0.79901546,103010.0,103000.0,0.52578252]
[1747324028474,0.88661745,103010.0,103000.0,0.004521]
[1747324028688,0.88661745,103010.0,103000.0,0.008521]
[1747324028689,0.4501036,103010.0,103000.0,0.008521]
[1747324028886,0.78930805,103010.0,103000.0,0.000521]
[1747324029089,0.78930805,103010.0,103000.0,0.001521]
[1747324029572,1.58036275,103010.0,103000.0,0.000521]
[1747324029781,1.2511583,103010.0,103000.0,0.000521]
[1747324030376,0.9336089,103010.0,103000.0,0.000521]
[1747324030502,1.1436489,103010.0,103000.0,0.000521]
[1747324030713,0.9336089,103010.0,103000.0,0.001521]
[1747324030951,1.1435289,103010.0,103000.0,0.001521]
[1747324031155,1.1435289,103010.0,103000.0,0.000521]
[1747324031357,1.2408383,103010.0,103000.0,0.000521]
[1747324031554,1.2427583,103010.0,103000.0,0.000521]
[1747324031863,1.2447583,103010.0,103000.0,0.000521]
[1747324032074,1.1474489,103010.0,103000.0,0.000521]
[1747324032816,0.0215,103010.0,103000.0,0.20440448]
[1747324033022,0.004,103010.0,103000.0,0.33083895]
[1747324033236,0.21404,103010.0,103000.0,0.33083895]
[1747324033646,0.23345416,103010.0,103000.0,0.33083895]
[1747324033867,0.59207353,103010.0,103000.0,0.33083895]
[1747324034069,0.38203353,103010.0,103000.0,0.33083895]
[1747324034269,0.25282908,103010.0,103000.0,0.33083895]
[1747324034464,0.22170694,103010.0,103000.0,0.33083895]
[1747324034691,0.21,103010.0,103000.0,0.33083895]
[1747324034863,0.02911923,103020.0,103010.0,0.22327833]
[1747324035062,0.24882589,103020.0,103010.0,0.44338546]
[1747324035409,0.24882645,103020.0,103010.0,0.44338546]
[1747324035601,0.43321704,103020.0,103010.0,0.4142636]
[1747324035801,0.43321704,103020.0,103010.0,0.4239712]
[1747324036016,0.77242149,103020.0,103010.0,0.4249712]
[1747324036386,0.77242149,103020.0,103010.0,0.44438603]
[1747324036581,0.35820445,103030.0,103010.0,0.53198641]
[1747324036784,0.36750857,103040.0,103030.0,0.21352918]
[1747324036972,0.45250193,103040.0,103030.0,0.21352936]
[1747324037198,1.13089805,103040.0,103030.0,0.19411821]
[1747324037388,1.13089805,103040.0,103030.0,0.20382412]
[1747324037591,1.10178382,103040.0,103020.0,0.31085893]
[1747324037808,0.35861522,103030.0,103020.0,0.31085893]
[1747324038011,0.33920445,103030.0,103020.0,0.31085893]
[1747324038197,0.56521379,103040.0,103030.0,0.19411821]
[1747324038405,0.77285379,103040.0,103030.0,0.20382393]
[1747324038610,0.77385379,103040.0,103030.0,0.20382393]
[1747324038808,0.7651492,103040.0,103030.0,0.20382412]
[1747324039061,0.7651492,103040.0,103030.0,0.32054486]
[1747324039261,0.002,103040.0,103030.0,0.33995564]
[1747324039438,0.03111311,103040.0,103030.0,0.33995564]
[1747324039677,0.04081789,103040.0,103030.0,0.33995564]
[1747324039904,0.03311311,103040.0,103030.0,0.33995564]
[1747324040103,0.58625292,103040.0,103030.0,0.33995582]
[1747324040332,0.55571346,103040.0,103030.0,0.0973094]
[1747324040490,0.55571346,103040.0,103030.0,0.30113352]
[1747324040829,0.56360878,103040.0,103030.0,0.0973094]
[1747324041043,0.56152026,103040.0,103030.0,0.0973094]
[1747324041244,0.56252026,103040.0,103030.0,0.0973094]
[1747324041410,0.56252026,103040.0,103030.0,0.30113352]